bitfinex/quotes_BTCUSD_20250123
["timestamp","ask_amount","ask_price","bid_price","bid_amount"]
[1737599148247,3e-07,102390.0,102380.0,0.41802229]
[1737599148904,0.2930103,102390.0,102380.0,0.41802229]
[1737599149098,0.2930103,102390.0,102380.0,0.36802229]
[1737599150357,0.3130103,102390.0,102380.0,3.94542229]
[1737599150706,0.3130103,102390.0,102380.0,3.73332229]
[1737599151527,0.2930103,102390.0,102380.0,3.73332229]
[1737599153855,0.2930103,102390.0,102380.0,2.92112229]
[1737599154818,0.3130103,102390.0,102380.0,2.92112229]
[1737599155008,0.3607103,102390.0,102380.0,2.89812229]
[1737599155213,0.3607103,102390.0,102380.0,2.56742229]
[1737599155409,0.3607103,102390.0,102380.0,2.28562229]
[1737599155621,0.3607103,102390.0,102380.0,2.30862229]
[1737599156050,0.4175103,102390.0,102380.0,0.097675]
[1737599156459,0.53485759,102390.0,102380.0,0.097675]
[1737599157703,0.53485759,102390.0,102380.0,0.247675]
[1737599158370,0.53485759,102390.0,102380.0,0.097675]
[1737599158605,0.63252259,102390.0,102380.0,0.097675]
[1737599158857,0.63252259,102390.0,102380.0,0.247675]
[1737599159353,0.53485759,102390.0,102380.0,0.247675]
[1737599159875,0.54625759,102390.0,102380.0,0.247675]
[1737599160106,0.54625759,102390.0,102380.0,0.15]
[1737599160354,0.242175,102380.0,102370.0,0.00971804]
[1737599160595,0.63253229,102380.0,102370.0,0.00971804]
[1737599160977,0.53485729,102380.0,102370.0,0.10740204]
[1737599161246,0.63253229,102380.0,102370.0,0.10740204]
[1737599161561,0.63253229,102380.0,102370.0,0.00971804]
[1737599161933,0.63253229,102380.0,102370.0,0.10740204]
[1737599162072,0.53485729,102380.0,102370.0,0.10740204]
[1737599162897,0.29301,102380.0,102370.0,3.18960204]
[1737599163093,0.29301,102380.0,102370.0,1.74060204]
[1737599163373,0.29301,102380.0,102370.0,1.86094933]
[1737599164467,0.273475,102380.0,102370.0,1.86094933]
[1737599164600,0.195335,102380.0,102370.0,1.86094933]
[1737599166078,0.195335,102380.0,102370.0,1.74060204]
[1737599166079,0.215335,102380.0,102370.0,1.74060204]
[1737599166274,0.195335,102380.0,102370.0,0.63860204]
[1737599166479,0.275635,102380.0,102370.0,0.63860204]
[1737599166899,0.295635,102380.0,102370.0,0.63860204]
[1737599167124,0.275635,102380.0,102370.0,0.25740204]
[1737599167351,0.275635,102380.0,102370.0,3.57960204]
[1737599167520,0.275635,102380.0,102370.0,3.58903727]
[1737599167745,0.275635,102380.0,102370.0,3.48903727]
[1737599167961,0.195335,102380.0,102370.0,3.60938456]
[1737599168149,0.215335,102380.0,102370.0,3.60968339]
[1737599169062,0.215335,102380.0,102370.0,3.34088339]
[1737599169292,0.215335,102380.0,102370.0,2.08938339]
[1737599169704,0.195335,102380.0,102370.0,1.3370361]
[1737599169911,0.195335,102380.0,102370.0,0.6663361]
[1737599170429,0.215335,102380.0,102370.0,0.6663361]
[1737599171056,0.195335,102380.0,102370.0,0.6663361]
[1737599171931,0.215335,102380.0,102370.0,0.78668339]
[1737599175836,0.195335,102380.0,102370.0,0.78668339]
[1737599176237,0.13673,102380.0,102370.0,0.78668339]
[1737599176420,0.06511835,102380.0,102370.0,0.83668339]
[1737599176862,0.06511835,102380.0,102370.0,0.91738339]
[1737599177180,3.5e-07,102380.0,102370.0,0.91738339]
[1737599177404,3.5e-07,102380.0,102370.0,0.51818339]
[1737599178948,3.5e-07,102380.0,102370.0,0.38748339]
[1737599179773,3.5e-07,102380.0,102370.0,0.43748339]
[1737599180558,0.0001425,102400.0,102390.0,0.097665]
[1737599180757,0.2931225,102400.0,102390.0,5.47635515]
[1737599182761,0.2931225,102400.0,102390.0,3.40875515]
[1737599183774,0.1954675,102400.0,102390.0,3.45875515]
[1737599184137,0.09542409,102400.0,102390.0,3.45875515]
[1737599184344,0.08542409,102400.0,102390.0,3.45875515]
[1737599184542,0.05138409,102400.0,102390.0,3.45875515]
[1737599184848,0.04168408,102400.0,102390.0,3.45875515]
[1737599185071,0.00262208,102400.0,102390.0,3.45875515]
[1737599185238,8e-08,102400.0,102390.0,3.45875515]
[1737599185462,8e-08,102400.0,102390.0,0.47635515]
[1737599186668,0.05672517,102430.0,102420.0,0.097637]
[1737599186874,0.20087704,102430.0,102420.0,0.25735504]
[1737599187107,0.49377704,102430.0,102420.0,0.25735504]
[1737599187287,0.38494975,102430.0,102420.0,0.25735504]
[1737599187438,0.39642975,102430.0,102420.0,0.25735504]
[1737599188647,0.49377704,102430.0,102420.0,0.25735504]
[1737599189061,0.61140404,102430.0,102420.0,0.15971804]
[1737599189266,0.61140404,102430.0,102420.0,0.25735504]
[1737599189520,0.64140404,102430.0,102420.0,0.00971804]
[1737599189871,0.02,102420.0,102410.0,0.247646]
[1737599190074,0.63708429,102420.0,102410.0,0.247646]
[1737599190514,0.63708429,102420.0,102410.0,0.15]
[1737599190741,0.63708429,102420.0,102410.0,0.247646]
[1737599190940,0.4221,102420.0,102410.0,0.247646]
[1737599191143,0.4222423,102420.0,102410.0,0.247646]
[1737599191586,0.4222423,102420.0,102410.0,1.30217082]
[1737599191783,0.4337223,102420.0,102410.0,0.29627082]
[1737599192356,0.43363349,102420.0,102410.0,1.83217082]
[1737599192563,0.43363349,102420.0,102410.0,0.92337082]
[1737599192933,0.43363349,102420.0,102410.0,0.91027082]
[1737599193789,0.43359349,102420.0,102410.0,0.91027082]
[1737599194735,0.43359349,102420.0,102410.0,0.86934797]
[1737599197745,0.43359349,102420.0,102410.0,0.66414797]
[1737599197935,0.43359349,102420.0,102410.0,0.63804797]
[1737599198734,0.43359349,102420.0,102410.0,0.49124797]
[1737599199089,0.43359349,102420.0,102410.0,0.25712315]
[1737599199293,0.42211349,102420.0,102410.0,0.30574797]
[1737599199424,0.43359349,102420.0,102410.0,0.30574797]
[1737599200667,0.43359349,102420.0,102410.0,0.25712315]
[1737599201236,0.42211349,102420.0,102410.0,0.00947715]
[1737599201451,0.42211349,102420.0,102370.0,0.00029883]
[1737599201452,0.221675,102380.0,102370.0,0.00029883]
[1737599201832,0.66192229,102380.0,102370.0,0.00029883]
[1737599201948,0.61192229,102380.0,102370.0,1e-08]
[1737599202148,0.05,102360.0,102350.0,0.00029883]
[1737599202349,0.67290129,102360.0,102350.0,0.00029883]
[1737599202867,0.67290129,102360.0,102350.0,0.00039741]
[1737599203074,0.69290129,102360.0,102350.0,0.09810041]
[1737599203289,0.47786,102360.0,102350.0,0.09810041]
[1737599203497,0.57520729,102360.0,102350.0,0.09810041]
[1737599203705,0.69290129,102360.0,102350.0,0.09810041]
[1737599203909,0.59520729,102360.0,102350.0,0.09810041]
[1737599204687,0.52520729,102360.0,102350.0,0.09810041]
[1737599205023,0.54520729,102360.0,102350.0,0.09810041]
[1737599206623,0.52520729,102360.0,102350.0,0.09810041]
[1737599207052,0.42786,102360.0,102350.0,0.24810041]
[1737599207250,0.4169,102360.0,102350.0,0.24810041]
[1737599207809,0.30438,102360.0,102350.0,0.66230041]
[1737599207993,0.30438,102360.0,102350.0,0.7826477]
[1737599208195,0.2929,102360.0,102350.0,0.7826477]
[1737599208394,0.30438,102360.0,102350.0,0.7826477]
[1737599208789,0.30438,102360.0,102350.0,0.7596477]
[1737599208997,0.2929,102360.0,102350.0,0.7826477]
[1737599209582,0.2929,102360.0,102350.0,0.66230041]
[1737599209769,0.2929,102360.0,102350.0,0.24810041]
[1737599209962,0.2929,102360.0,102350.0,0.35830041]
[1737599212469,0.2929,102360.0,102350.0,0.40692523]
[1737599213021,0.30438,102360.0,102350.0,0.40692523]
[1737599214024,0.30438,102360.0,102350.0,0.41643115]
[1737599216953,0.30438,102360.0,102350.0,0.25760633]
[1737599217631,0.2929,102360.0,102350.0,0.30623115]
[1737599217830,0.30438,102360.0,102350.0,0.30623115]
[1737599218791,0.30438,102360.0,102350.0,0.25760633]
[1737599219093,0.47682729,102360.0,102350.0,0.09810041]
[1737599219838,0.49682729,102360.0,102350.0,0.09810041]
[1737599220151,0.54572729,102360.0,102350.0,0.24810041]
[1737599220969,0.64342129,102360.0,102350.0,0.00039741]
[1737599221171,0.67342129,102360.0,102350.0,0.00039741]
[1737599222190,0.124,102330.0,102320.0,0.293174]
[1737599222553,0.51424729,102330.0,102320.0,0.29327259]
[1737599222942,0.51424729,102330.0,102320.0,0.44327259]
[1737599223133,1.15397029,102330.0,102320.0,9.859e-05]
[1737599223657,1.20397029,102330.0,102320.0,9.859e-05]
[1737599225581,1.22349655,102330.0,102320.0,9.859e-05]
[1737599226304,1.22349655,102330.0,102320.0,0.09783059]
[1737599226305,1.23449655,102330.0,102320.0,0.09783059]
[1737599226503,1.14577355,102330.0,102320.0,0.09783059]
[1737599226791,1.25449655,102330.0,102320.0,0.09783059]
[1737599227000,1.23449655,102330.0,102320.0,9.859e-05]
[1737599228074,1.23449655,102330.0,102320.0,0.00039763]
[1737599231139,1.23449655,102330.0,102320.0,0.09812963]
[1737599231339,1.23449655,102330.0,102320.0,0.00039763]
[1737599232373,1.22349655,102330.0,102320.0,0.00039763]
[1737599232580,1.23449655,102330.0,102320.0,0.00039763]
[1737599234028,0.64249655,102330.0,102320.0,0.00039763]
[1737599234311,0.69249655,102330.0,102320.0,0.00039763]
[1737599234480,0.64249655,102330.0,102320.0,0.00039763]
[1737599239443,0.66549655,102330.0,102320.0,0.00039763]
[1737599246300,0.76284384,102330.0,102320.0,0.00039763]
[1737599246642,0.66549655,102330.0,102320.0,0.00039763]
[1737599248018,0.02,102300.0,102290.0,0.293264]
[1737599248237,0.02,102290.0,102280.0,0.293299]
[1737599248450,0.53800829,102290.0,102280.0,0.097765]
[1737599248643,0.02,102280.0,102270.0,0.19584362]
[1737599248845,0.42076729,102280.0,102270.0,0.44361562]
[1737599249091,0.42076729,102280.0,102270.0,0.29361562]
[1737599249501,0.42081762,102280.0,102270.0,0.29361562]
[1737599250607,0.42837004,102280.0,102270.0,0.44361562]
[1737599251434,0.52349212,102280.0,102270.0,0.29361562]
[1737599251638,0.47572212,102280.0,102270.0,0.29361562]
[1737599252594,0.55614004,102280.0,102270.0,0.09807062]
[1737599252793,0.55614004,102280.0,102270.0,0.00029862]
[1737599253020,1.52414004,102280.0,102270.0,0.00029862]
[1737599253435,1.61790004,102280.0,102270.0,0.00029862]
[1737599253842,1.63717138,102280.0,102270.0,0.00029862]
[1737599257182,1.61417138,102280.0,102270.0,0.09807862]
[1737599257384,1.61417138,102280.0,102270.0,0.00029862]
[1737599257535,1.61417138,102280.0,102270.0,0.09807862]
[1737599257536,1.48620138,102280.0,102270.0,0.09807862]
[1737599257743,1.37918138,102280.0,102270.0,0.09807862]
[1737599257938,1.84477346,102280.0,102270.0,0.09807862]
[1737599258194,1.81986896,102280.0,102270.0,0.09807862]
[1737599258444,1.72252167,102280.0,102270.0,2.06907862]
[1737599258738,1.71377033,102280.0,102270.0,2.06907862]
[1737599259036,1.71377033,102280.0,102270.0,2.15167862]
[1737599259738,1.71377033,102280.0,102270.0,0.33067862]
[1737599260038,1.71377033,102280.0,102270.0,0.57497862]
[1737599260350,1.81111762,102280.0,102270.0,0.24807862]
[1737599262636,1.71377033,102280.0,102270.0,0.50277862]
[1737599263031,1.71377033,102280.0,102270.0,0.42387862]
[1737599263236,1.71377033,102280.0,102270.0,0.24807862]
[1737599263879,0.84561293,102280.0,102270.0,0.24807862]
[1737599264767,0.30337293,102280.0,102270.0,3.26182654]
[1737599264949,0.30337293,102280.0,102270.0,1.28792654]
[1737599265372,0.30337293,102280.0,102270.0,0.33332654]
[1737599265740,0.30337293,102280.0,102270.0,3.31272654]
[1737599265949,0.30337293,102280.0,102270.0,3.16967862]
[1737599266182,0.30337293,102280.0,102270.0,0.33067862]
[1737599269005,0.30337293,102280.0,102270.0,0.33332654]
[1737599270011,0.30337293,102280.0,102270.0,5.38332654]
[1737599271373,0.29309293,102280.0,102270.0,5.38332654]
[1737599271674,0.30337293,102280.0,102270.0,5.38332654]
[1737599271901,0.30337293,102280.0,102270.0,5.50367383]
[1737599272377,0.29309293,102280.0,102270.0,5.50367383]
[1737599272533,0.30337293,102280.0,102270.0,5.50367383]
[1737599273971,0.29309293,102280.0,102270.0,5.50367383]
[1737599274468,0.30337293,102280.0,102270.0,5.50367383]
[1737599276347,0.29309293,102280.0,102270.0,5.50367383]
[1737599276550,0.30337293,102280.0,102270.0,5.38332654]
[1737599278865,0.30337293,102280.0,102270.0,4.49192654]
[1737599281088,0.30337293,102280.0,102270.0,4.12662654]
[1737599281929,0.30337293,102280.0,102270.0,3.80517862]
[1737599282133,0.5973423,102280.0,102270.0,0.00029862]
[1737599282337,0.5480723,102280.0,102270.0,0.09807862]
[1737599282542,0.53072022,102280.0,102270.0,0.24807862]
[1737599282749,0.30337293,102280.0,102270.0,0.09807862]
[1737599283107,0.30337293,102280.0,102270.0,0.24807862]
[1737599284958,0.40072022,102280.0,102270.0,0.24807862]
[1737599286980,0.5639423,102280.0,102270.0,0.24807862]
[1737599287142,0.4661723,102280.0,102270.0,0.24807862]
[1737599287589,1.0081723,102280.0,102270.0,0.24807862]
[1737599287937,1.1059423,102280.0,102270.0,0.15029862]
[1737599288132,1.16419022,102280.0,102270.0,0.24807862]
[1737599288330,1.1815423,102280.0,102270.0,0.24807862]
[1737599289551,1.18929711,102280.0,102270.0,0.24807862]
[1737599290143,1.07417503,102280.0,102270.0,0.24807862]
[1737599290875,1.17194503,102280.0,102270.0,0.24807862]
[1737599291383,1.18929711,102280.0,102270.0,0.24807862]
[1737599291679,1.07417503,102280.0,102270.0,0.24807862]
[1737599291827,1.09152711,102280.0,102270.0,0.24807862]
[1737599292031,1.07417503,102280.0,102270.0,0.24807862]
[1737599292236,1.09152711,102280.0,102270.0,0.24807862]
[1737599293068,1.07417503,102280.0,102270.0,0.24807862]
[1737599293273,1.09152711,102280.0,102270.0,0.24807862]
[1737599293500,0.53217503,102280.0,102270.0,0.24807862]
[1737599293636,0.54952711,102280.0,102270.0,0.24807862]
[1737599293852,0.53217503,102280.0,102270.0,0.24807862]
[1737599294194,0.54952711,102280.0,102270.0,0.24807862]
[1737599294914,0.64729711,102280.0,102270.0,0.24807862]
[1737599296196,0.54952711,102280.0,102270.0,0.24807862]
[1737599296626,0.64729711,102280.0,102270.0,0.24807862]
[1737599298146,0.64729711,102280.0,102270.0,0.15029862]
[1737599299525,0.64729711,102280.0,102270.0,0.24807862]
[1737599299910,0.64717711,102280.0,102270.0,0.24807862]
[1737599300973,0.64717711,102280.0,102270.0,0.15029862]
[1737599301487,0.64717711,102280.0,102270.0,0.24807862]
[1737599301867,0.64717711,102280.0,102270.0,0.15029862]
[1737599303792,0.64717711,102280.0,102270.0,0.24807862]
[1737599303955,0.63701711,102280.0,102270.0,0.24807862]
[1737599304159,0.64717711,102280.0,102270.0,0.15029862]
[1737599304739,0.64717711,102280.0,102270.0,0.24807862]
[1737599305352,0.64717711,102280.0,102270.0,0.15029862]
[1737599305599,0.67982503,102280.0,102270.0,0.00029862]
[1737599305801,0.69717711,102280.0,102270.0,0.00029862]
[1737599305999,0.64717711,102280.0,102270.0,0.09807862]
[1737599306177,0.64717711,102280.0,102270.0,0.00029862]
[1737599306778,0.69717711,102280.0,102270.0,0.00029862]
[1737599307431,0.67982503,102280.0,102270.0,0.00029862]
[1737599308838,0.65282503,102280.0,102270.0,1e-08]
[1737599314325,0.75017232,102280.0,102270.0,1e-08]
[1737599314530,0.65282503,102280.0,102270.0,1e-08]
[1737599315064,0.73813757,102280.0,102270.0,1e-08]
[1737599318313,0.88813757,102280.0,102270.0,1e-08]
[1737599320526,0.24908,102270.0,102260.0,0.00025905]
[1737599320697,0.63932729,102270.0,102260.0,0.00025905]
[1737599326489,0.72482786,102270.0,102260.0,0.00025905]
[1737599327661,0.81862786,102270.0,102260.0,0.00025905]
[1737599328921,0.96862786,102270.0,102260.0,0.00025905]
[1737599330579,0.97062786,102270.0,102260.0,0.00025905]
[1737599334153,1.09274948,102270.0,102260.0,0.00025905]
[1737599334356,1.00724891,102270.0,102260.0,0.00025905]
[1737599335703,0.01735208,102230.0,102220.0,0.00029925]
[1737599335912,0.22267737,102230.0,102220.0,0.00029925]
[1737599336029,0.51557737,102230.0,102220.0,0.15029925]
[1737599336439,0.51557737,102230.0,102220.0,0.24812725]
[1737599336859,0.51557737,102230.0,102220.0,0.15029925]
[1737599337061,0.51557737,102230.0,102220.0,0.24863236]
[1737599337266,0.49822529,102230.0,102220.0,0.24863236]
[1737599337684,0.51557737,102230.0,102220.0,0.24863236]
[1737599338383,0.51557737,102230.0,102220.0,0.24963236]
[1737599338584,0.51557737,102230.0,102220.0,0.24863236]
[1737599338988,0.51557737,102230.0,102220.0,0.24963236]
[1737599342086,0.40040729,102230.0,102220.0,0.24963236]
[1737599342495,0.39024729,102230.0,102220.0,0.24963236]
[1737599342699,0.40040729,102230.0,102220.0,0.24963236]
[1737599346021,0.4198073,102230.0,102220.0,0.24963236]
[1737599351677,0.4096473,102230.0,102220.0,0.24963236]
[1737599351886,0.4198073,102230.0,102220.0,0.24963236]
[1737599355004,0.40040729,102230.0,102220.0,0.24963236]
[1737599355129,0.30306,102230.0,102220.0,1.10568028]
[1737599355339,0.40040729,102230.0,102220.0,0.59963236]
[1737599355811,0.40040729,102230.0,102220.0,0.58893236]
[1737599356329,0.40040729,102230.0,102220.0,0.54553236]
[1737599357411,0.40040729,102230.0,102220.0,0.52673236]
[1737599357616,0.40040729,102230.0,102220.0,0.52773236]
[1737599359271,0.40040729,102230.0,102220.0,0.53629484]
[1737599359486,0.2929,102230.0,102220.0,0.53894276]
[1737599359661,0.2929,102230.0,102220.0,0.63629005]
[1737599359817,0.234208,102230.0,102220.0,0.65929005]
[1737599360021,0.19508,102230.0,102220.0,0.53894276]
[1737599360576,0.19508,102230.0,102220.0,0.53794276]
[1737599361575,0.19508,102230.0,102220.0,0.53529484]
[1737599361784,0.19508,102230.0,102220.0,0.53794276]
[1737599364361,0.19508,102230.0,102220.0,0.65829005]
[1737599366048,0.09726,102230.0,102220.0,0.65829005]
[1737599366284,0.03556782,102230.0,102220.0,0.72829005]
[1737599366699,0.03556782,102230.0,102220.0,0.53794276]
[1737599368160,0.03556782,102230.0,102220.0,0.49154276]
[1737599369553,0.03556782,102230.0,102220.0,0.53914276]
[1737599369953,0.03556782,102230.0,102220.0,0.63649005]
[1737599370956,8.2e-07,102230.0,102220.0,0.65949005]
[1737599371160,8.2e-07,102230.0,102220.0,0.52889005]
[1737599371373,0.54210342,102240.0,102230.0,5.320818]
[1737599371610,0.55226342,102240.0,102230.0,5.55454469]
[1737599371817,0.84570342,102240.0,102230.0,5.55454469]
[1737599374828,0.25441942,102240.0,102230.0,5.55719261]
[1737599375040,0.23485742,102240.0,102230.0,5.55719261]
[1737599376877,0.23485742,102240.0,102230.0,5.30349261]
[1737599379637,0.23485742,102240.0,102230.0,5.30379207]
[1737599379775,0.23500002,102240.0,102230.0,5.30379207]
[1737599380180,0.05449768,102240.0,102230.0,5.42309207]
[1737599381349,6.8e-07,102240.0,102230.0,5.42309207]
[1737599381489,6.8e-07,102240.0,102230.0,0.62679207]
[1737599381886,6.8e-07,102240.0,102230.0,0.60679207]
[1737599382089,0.19563068,102240.0,102230.0,0.62679207]
[1737599383137,0.15650668,102240.0,102230.0,5.67679207]
[1737599383464,0.13694468,102240.0,102230.0,5.67679207]
[1737599383986,0.11738268,102240.0,102230.0,5.67679207]
[1737599384130,0.07825868,102240.0,102230.0,5.67679207]
[1737599384471,0.87486,102260.0,102250.0,0.35564692]
[1737599384683,0.0001426,102270.0,102260.0,0.27343692]
[1737599384882,0.0102626,102270.0,102260.0,5.42078421]
[1737599385283,0.3036226,102270.0,102260.0,5.42078421]
[1737599385514,0.2543906,102270.0,102260.0,5.42078421]
[1737599385666,0.2543906,102270.0,102260.0,5.52298421]
[1737599385667,0.1957226,102270.0,102260.0,5.52298421]
[1737599385874,0.1957226,102270.0,102260.0,5.57348932]
[1737599386056,0.1761666,102270.0,102260.0,5.57348932]
[1737599386256,0.0415326,102270.0,102260.0,5.57348932]
[1737599386606,0.0797,102320.0,102310.0,0.25038992]
[1737599386803,0.0797,102320.0,102310.0,5.30038992]
[1737599386804,0.01012,102320.0,102310.0,5.30038992]
[1737599387225,0.06998,102320.0,102310.0,5.30038992]
[1737599388196,0.06998,102320.0,102310.0,5.10188992]
[1737599388418,0.06998,102320.0,102310.0,5.00718992]
[1737599388615,0.05986,102320.0,102310.0,3.08928992]
[1737599388815,0.06998,102320.0,102310.0,3.08928992]
[1737599389751,0.06998,102320.0,102310.0,2.79078992]
[1737599389944,0.06998,102320.0,102310.0,2.59208992]
[1737599390148,0.06998,102320.0,102310.0,0.247742]
[1737599390414,0.24010729,102320.0,102310.0,0.247742]
[1737599390592,0.15288,102320.0,102310.0,0.247742]
[1737599391242,0.25022729,102320.0,102310.0,0.247742]
[1737599392081,0.25036969,102320.0,102310.0,0.247742]
[1737599394497,0.79236969,102320.0,102310.0,0.247742]
[1737599396604,0.89010169,102320.0,102310.0,0.247742]
[1737599396806,0.79236969,102320.0,102310.0,0.247742]
[1737599397007,0.58896769,102320.0,102300.0,0.30235721]
[1737599397207,0.18024729,102310.0,102300.0,0.29338443]
[1737599397418,0.24010729,102310.0,102300.0,0.44338443]
[1737599397861,0.24010729,102310.0,102300.0,0.09789843]
[1737599398062,0.38324929,102310.0,102300.0,0.00015143]
[1737599398304,0.38324929,102310.0,102300.0,0.15015143]
[1737599398519,0.75374337,102310.0,102300.0,0.00015143]
[1737599398950,0.73639129,102310.0,102300.0,0.00015143]
[1737599399152,0.70939129,102310.0,102300.0,0.00015143]
[1737599402355,0.19821308,102290.0,102280.0,0.00029904]
[1737599402561,0.40237141,102290.0,102280.0,0.00029904]
[1737599402766,0.45237141,102290.0,102280.0,0.00029904]
[1737599404106,0.84343141,102290.0,102270.0,0.15972538]
[1737599404303,0.19502842,102280.0,102270.0,0.25174737]
[1737599404512,0.25488842,102280.0,102270.0,0.25174737]
[1737599404781,0.25488842,102280.0,102270.0,0.15396937]
[1737599404983,0.33758842,102280.0,102270.0,0.15357166]
[1737599405201,0.69073042,102280.0,102270.0,0.00357166]
[1737599406249,0.7080825,102280.0,102270.0,0.00357166]
[1737599406451,0.7570825,102280.0,102270.0,0.00357166]
[1737599406826,0.73973042,102280.0,102270.0,0.00357166]
[1737599407031,0.7570825,102280.0,102270.0,0.00357166]
[1737599407233,0.7570825,102280.0,102250.0,0.293391]
[1737599407234,0.44342808,102260.0,102250.0,0.00357166]
[1737599407582,0.56075537,102260.0,102250.0,0.00357166]
[1737599407774,0.06998,102260.0,102250.0,0.10137066]
[1737599408053,0.06998,102260.0,102250.0,0.25401858]
[1737599408260,0.16732729,102260.0,102250.0,0.25137066]
[1737599408809,0.34781629,102260.0,102250.0,0.00357166]
[1737599409433,0.39681629,102260.0,102250.0,0.00357166]
[1737599410246,0.41416837,102260.0,102250.0,0.00357166]
[1737599410466,0.39681629,102260.0,102250.0,0.00357166]
[1737599410832,0.41416837,102260.0,102250.0,0.00357166]
[1737599411036,0.39681629,102260.0,102250.0,0.00357166]
[1737599411279,0.29902729,102260.0,102250.0,0.10137066]
[1737599411480,0.39681629,102260.0,102250.0,0.10137066]
[1737599411656,0.29902729,102260.0,102250.0,0.10137066]
[1737599412197,0.28890729,102260.0,102250.0,0.10137066]
[1737599412600,0.29902729,102260.0,102250.0,0.10137066]
[1737599413580,0.06998,102260.0,102250.0,0.25401858]
[1737599416555,0.06998,102260.0,102250.0,0.25431762]
[1737599417307,0.16732729,102260.0,102250.0,0.2516697]
[1737599417509,0.25002729,102260.0,102250.0,0.2516697]
[1737599418547,0.23990729,102260.0,102250.0,0.2516697]
[1737599418757,0.25002729,102260.0,102250.0,0.2516697]
[1737599420076,0.29902729,102260.0,102250.0,0.2516697]
[1737599420415,0.39681629,102260.0,102250.0,0.0038707]
[1737599421019,0.39681629,102260.0,102250.0,0.1016697]
[1737599421678,0.29902729,102260.0,102250.0,0.1016697]
[1737599422456,0.16732729,102260.0,102250.0,0.2516697]
[1737599423009,0.15720729,102260.0,102250.0,0.2516697]
[1737599423211,0.16732729,102260.0,102250.0,0.2516697]
[1737599424087,0.15720729,102260.0,102250.0,0.2516697]
[1737599424241,0.16732729,102260.0,102250.0,0.2516697]
[1737599424453,0.34301629,102260.0,102250.0,0.2516697]
[1737599424661,0.38871629,102260.0,102250.0,0.1538707]
[1737599425078,0.43871629,102260.0,102250.0,0.0038707]
[1737599427802,0.45606837,102260.0,102250.0,0.0038707]
[1737599428275,0.45606837,102260.0,102230.0,0.00029946]
[1737599428276,1.15346108,102240.0,102230.0,0.00029946]
[1737599428424,1.25080837,102240.0,102230.0,0.00029946]
[1737599428621,1.26066837,102240.0,102230.0,0.00029946]
[1737599428855,1.31066837,102240.0,102230.0,0.00029946]
[1737599429558,1.31066837,102240.0,102230.0,0.00080457]
[1737599430755,1.19550729,102240.0,102230.0,0.09862257]
[1737599430952,1.29331629,102240.0,102230.0,0.09862257]
[1737599431099,1.20562729,102240.0,102230.0,0.09862257]
[1737599432152,1.22508126,102240.0,102230.0,0.09862257]
[1737599433247,0.50948126,102240.0,102230.0,0.24862257]
[1737599433649,0.39268,102240.0,102230.0,0.25127049]
[1737599435376,0.38256,102240.0,102230.0,0.25127049]
[1737599435583,0.39268,102240.0,102230.0,0.25127049]
[1737599436518,0.39268,102240.0,102230.0,1.33027049]
[1737599436727,0.39268,102240.0,102230.0,0.91937049]
[1737599438865,0.61198,102240.0,102230.0,0.97774989]
[1737599439081,0.60186,102240.0,102230.0,0.97774989]
[1737599439300,0.60186,102240.0,102230.0,0.30964989]
[1737599439482,0.61198,102240.0,102230.0,5.35964989]
[1737599439911,0.61198,102240.0,102230.0,5.45699718]
[1737599440111,0.60186,102240.0,102230.0,5.57959718]
[1737599440342,0.60186,102240.0,102230.0,5.57872038]
[1737599440546,0.040298,102240.0,102230.0,5.60172038]
[1737599440749,1e-06,102240.0,102230.0,5.62172038]
[1737599440957,1e-06,102240.0,102230.0,5.63082922]
[1737599441785,0.542,102260.0,102250.0,0.17604692]
[1737599441786,0.5403834,102260.0,102250.0,0.17604692]
[1737599441990,0.5403834,102260.0,102250.0,5.28442632]
[1737599442201,0.0001424,102270.0,102250.0,5.28442632]
[1737599442202,0.0001424,102270.0,102260.0,0.15264792]
[1737599442415,0.0102624,102270.0,102260.0,1.74628421]
[1737599442621,0.0102624,102270.0,102260.0,0.445789]
[1737599442819,0.0102624,102270.0,102260.0,0.44843692]
[1737599443426,0.0001424,102270.0,102260.0,0.54578421]
[1737599443666,4e-07,102270.0,102260.0,0.54578421]
[1737599443878,4e-07,102270.0,102260.0,0.39078421]
[1737599444082,4e-07,102270.0,102260.0,0.19513629]
[1737599444498,4e-07,102270.0,102260.0,0.21513629]
[1737599445118,4e-07,102270.0,102260.0,0.097789]
[1737599445442,0.0100804,102270.0,102260.0,0.097789]
[1737599445848,0.0100804,102270.0,102260.0,5.147789]
[1737599446078,0.0100804,102270.0,102260.0,5.297789]
[1737599446559,0.0100804,102270.0,102260.0,5.30688733]
[1737599446757,0.0100804,102270.0,102260.0,4.75608733]
[1737599446977,0.0100804,102270.0,102260.0,4.70138733]
[1737599447155,0.0100804,102270.0,102260.0,4.49918733]
[1737599447841,4e-07,102270.0,102260.0,4.49918733]
[1737599448037,4e-07,102270.0,102260.0,0.25688733]
[1737599449423,0.18034769,102270.0,102260.0,0.25688733]
[1737599453101,0.18034769,102270.0,102260.0,0.097789]
[1737599454894,4e-07,102270.0,102260.0,1.631189]
[1737599455121,4e-07,102270.0,102260.0,0.247789]
[1737599455355,0.0100804,102270.0,102260.0,0.247789]
[1737599455556,4e-07,102270.0,102260.0,0.247789]
[1737599455987,0.0100804,102270.0,102260.0,0.247789]
[1737599456360,4e-07,102270.0,102260.0,0.34513629]
[1737599457194,4e-07,102270.0,102260.0,0.247789]
[1737599457617,0.0100804,102270.0,102260.0,0.247789]
[1737599458021,0.0100804,102270.0,102260.0,1.067889]
[1737599458224,0.10742769,102270.0,102260.0,0.247789]
[1737599463109,4e-07,102270.0,102260.0,0.247789]
[1737599463225,0.0100804,102270.0,102260.0,2.148889]
[1737599463424,0.0100804,102270.0,102260.0,3.458389]
[1737599463639,4e-07,102270.0,102260.0,3.405489]
[1737599463842,0.0100804,102270.0,102260.0,0.247789]
[1737599464075,4e-07,102270.0,102260.0,0.247789]
[1737599465921,4e-07,102270.0,102260.0,0.36513629]
[1737599468378,0.9953424,102300.0,102290.0,0.247761]
[1737599468379,0.0001424,102300.0,102290.0,0.247761]
[1737599468628,0.0001424,102300.0,102290.0,5.297761]
[1737599468833,0.0102224,102300.0,102290.0,5.118061]
[1737599468968,0.0001424,102300.0,102290.0,4.45690829]
[1737599469164,0.6214424,102300.0,102290.0,0.247761]
[1737599469572,0.76489355,102300.0,102290.0,0.247761]
[1737599470839,0.542,102280.0,102270.0,0.097776]
[1737599471038,0.0456,102270.0,102260.0,0.293349]
[1737599471242,0.22224729,102270.0,102260.0,0.293349]
[1737599472053,0.22224729,102270.0,102260.0,0.443349]
[1737599472256,0.22224729,102270.0,102260.0,0.293349]
[1737599472457,0.22224729,102270.0,102260.0,0.443349]
[1737599472692,0.34302729,102270.0,102250.0,0.48926404]
[1737599472884,0.10742729,102260.0,102250.0,0.29367804]
[1737599473284,0.10742729,102260.0,102250.0,0.44367804]
[1737599473487,0.10742729,102260.0,102250.0,0.29367804]